[Event "European Online Club-ch-I 2021"]
[Site "Online"]
[Date "2021.03.27"]
[Round "7.14"]
[White "Tomczak, Jacek"]
[Black "Sorensen, Jan"]
[Result "1-0"]
[ECO "C18"]
[WhiteElo "2610"]
[BlackElo "2369"]
[Annotator "ChessBase"]
[PlyCount "61"]
[EventDate "2021.03.27"]
[EventType "team-tourn"]
[EventCountry "NET"]
[SourceTitle "playchess.com"]
[Source "ChessBase"]
[SourceQuality "1"]
[TimeControl "900+5"]

1. e4 {[%emt 0:00:00]} e6 {[%emt 0:00:03]} 2. d4 {[%emt 0:00:03]} d5 {[%emt 0:00:01]} 3. Nc3 {[%emt 0:00:03]} Bb4 {[%emt 0:00:02]} 4. e5 {[%emt 0:00:02]} c5 {[%emt 0:00:03]} 5. a3 {[%emt 0:00:01]} Bxc3+ {[%emt 0:00:02]} 6. bxc3 {[%emt 0:00:01]} Ne7 {[%emt 0:00:06]} 7. h4 {[%emt 0:00:02]} Qc7 {[%emt 0:00:09]} 8. h5 {[%emt 0:00:03]} h6 {[%emt 0:00:09]} 9. Bd2 {[%emt 0:00:05]} b6 {[%emt 0:00:20]} 10. Qg4 {[%emt 0:00:05]} Nf5 {[%emt 0:01:12]} 11. Bd3 {[%emt 0:00:12]} Rg8 {[%emt 0:00:20]} 12. Ne2 {[%emt 0:00:26]} c4 {[%emt 0:00:16]} 13. Bxf5 {[%emt 0:00:04]} exf5 {[%emt 0:00:01]} 14. Qg3 {[%emt 0:00:17]} Kf8 {[%emt 0:00:36]} 15. Nf4 {[%emt 0:00:14]} Be6 {[%emt 0:00:05]} 16. a4 {[%emt 0:00:04]} Nc6 {[%emt 0:00:24]} 17. Bc1 {[%emt 0:00:04]} Ke8 {[%emt 0:00:09]} 18. Ba3 {[%emt 0:00:06]} Kd7 {[%emt 0:00:47]} 19. Qf3 {[%emt 0:00:06]} Ne7 {[%emt 0:00:23]} 20. Bxe7 {[%emt 0:00:13]} Kxe7 {[%emt 0:00:02]} 21. Nxd5+ {[%emt 0:00:01]} Bxd5 {[%emt 0:00:02]} 22. Qxd5 {[%emt 0:00:02]} Rad8 {[%emt 0:00:03]} 23. Qf3 {[%emt 0:00:02]} Qd7 {[%emt 0:00:08]} 24. O-O {[%emt 0:00:08]} Qe6 {[%emt 0:00:12]} 25. a5 {[%emt 0:00:25]} Rd7 {[%emt 0:00:21]} 26. axb6 {[%emt 0:00:08]} axb6 {[%emt 0:00:02]} 27. Rfb1 {[%emt 0:00:09]} Rc8 {[%emt 0:00:35]} 28. Ra6 {[%emt 0:00:15]} Qd5 {[%emt 0:01:23]} 29. Qxd5 {[%emt 0:00:07]} Rxd5 {[%emt 0:00:01]} 30. Rbxb6 {[%emt 0:00:02]} Rc7 {[%emt 0:00:14]} 31. Kh2 {[%emt 0:00:03]} 1-0

[Event "European Online Club-ch-I 2021"]
[Site "Online"]
[Date "2021.03.27"]
[Round "7.15"]
[White "Vinter-Schou, Uffe"]
[Black "Klekowski, Maciej"]
[Result "0-1"]
[ECO "B22"]
[WhiteElo "2320"]
[BlackElo "2510"]
[Annotator "ChessBase"]
[PlyCount "130"]
[EventDate "2021.03.27"]
[EventType "team-tourn"]
[EventCountry "NET"]
[SourceTitle "playchess.com"]
[Source "ChessBase"]
[SourceQuality "1"]
[TimeControl "900+5"]

1. e4 {[%emt 0:00:00]} c5 {[%emt 0:00:02]} 2. Nf3 {[%emt 0:00:03]} e6 {[%emt 0:00:02]} 3. c3 {[%emt 0:00:05]} Nf6 {[%emt 0:00:02]} 4. e5 {[%emt 0:00:02]} Nd5 {[%emt 0:00:01]} 5. g3 {[%emt 0:00:02]} Nc6 {[%emt 0:00:07]} 6. Bg2 {[%emt 0:00:03]} d6 {[%emt 0:00:04]} 7. exd6 {[%emt 0:00:15]} Bxd6 {[%emt 0:00:02]} 8. O-O {[%emt 0:00:03]} O-O {[%emt 0:00:12]} 9. d4 {[%emt 0:00:04]} b6 {[%emt 0:01:27]} 10. c4 {[%emt 0:00:31]} Nde7 {[%emt 0:00:07]} 11. Nc3 {[%emt 0:00:20]} Bb7 {[%emt 0:00:23]} 12. Bg5 {[%emt 0:00:46]} h6 {[%emt 0:00:26]} 13. Bxe7 {[%emt 0:00:32]} Nxe7 {[%emt 0:00:14]} 14. Qe2 {[%emt 0:01:42]} cxd4 {[%emt 0:01:43]} 15. Nxd4 {[%emt 0:00:11]} Bxg2 {[%emt 0:00:00]} 16. Kxg2 {[%emt 0:00:04]} Bc5 {[%emt 0:00:01]} 17. Nf3 {[%emt 0:00:28]} Nf5 {[%emt 0:00:04]} 18. Rfd1 {[%emt 0:00:25]} Qe7 {[%emt 0:00:02]} 19. Ne4 {[%emt 0:01:53]} Rfd8 {[%emt 0:00:14]} 20. h4 {[%emt 0:01:51]} Nd4 {[%emt 0:01:32]} 21. Nxd4 {[%emt 0:00:09]} Bxd4 {[%emt 0:00:00]} 22. Rd3 {[%emt 0:00:37]} Rd7 {[%emt 0:00:28]} 23. Rad1 {[%emt 0:00:10]} Rad8 {[%emt 0:00:01]} 24. b3 {[%emt 0:00:18]} f5 {[%emt 0:00:41]} 25. Nd2 {[%emt 0:00:05]} e5 {[%emt 0:00:02]} 26. f3 {[%emt 0:00:40]} Rd6 {[%emt 0:03:32]} 27. Nf1 {[%emt 0:00:59]} e4 {[%emt 0:00:17]} 28. R3d2 {[%emt 0:00:12]} Qe5 {[%emt 0:00:45]} 29. fxe4 {[%emt 0:01:05]} fxe4 {[%emt 0:00:04]} 30. Ne3 {[%emt 0:00:04]} Rg6 {[%emt 0:02:39]} 31. Ng4 {[%emt 0:00:13]} Qe6 {[%emt 0:00:01]} 32. Nxh6+ {[%emt 0:00:49]} gxh6 {[%emt 0:00:50]} 33. Rxd4 {[%emt 0:00:05]} Rxd4 {[%emt 0:00:03]} 34. Rxd4 {[%emt 0:00:06]} Rxg3+ {[%emt 0:00:09]} 35. Kxg3 {[%emt 0:00:10]} Qe5+ {[%emt 0:00:02]} 36. Kg2 {[%emt 0:00:40]} Qxd4 {[%emt 0:00:31]} 37. Qg4+ {[%emt 0:00:03]} Kf7 {[%emt 0:00:38]} 38. Qf4+ {[%emt 0:00:09]} Kg7 {[%emt 0:00:21]} 39. Qg3+ {[%emt 0:00:17]} Kh7 {[%emt 0:00:11]} 40. Qf2 {[%emt 0:01:04]} Qg7+ {[%emt 0:00:13]} 41. Kf1 {[%emt 0:00:19]} Qa1+ {[%emt 0:00:03]} 42. Qe1 {[%emt 0:00:07]} Qe5 {[%emt 0:00:04]} 43. Qf2 {[%emt 0:00:06]} Kg6 {[%emt 0:00:03]} 44. Qe3 {[%emt 0:00:13]} Kh5 {[%emt 0:00:05]} 45. Kg2 {[%emt 0:00:11]} Qf5 {[%emt 0:00:06]} 46. b4 {[%emt 0:00:16]} Qg4+ {[%emt 0:00:03]} 47. Kf1 {[%emt 0:00:10]} Qxh4 {[%emt 0:00:06]} 48. c5 {[%emt 0:00:12]} bxc5 {[%emt 0:00:04]} 49. bxc5 {[%emt 0:00:08]} Qf6+ {[%emt 0:00:02]} 50. Kg2 {[%emt 0:00:04]} Qc6 {[%emt 0:00:10]} 51. Qd4 {[%emt 0:00:04]} Kg6 {[%emt 0:00:04]} 52. Kg3 {[%emt 0:00:02]} Kf5 {[%emt 0:00:03]} 53. Qd8 {[%emt 0:00:05]} Qxc5 {[%emt 0:00:08]} 54. Qd7+ {[%emt 0:00:05]} Ke5 {[%emt 0:00:05]} 55. Qg7+ {[%emt 0:00:03]} Kd5 {[%emt 0:00:03]} 56. Qf7+ {[%emt 0:00:04]} Kd4 {[%emt 0:00:02]} 57. Qf2+ {[%emt 0:00:04]} Kc4 {[%emt 0:00:10]} 58. Qc2+ {[%emt 0:00:02]} Kd5 {[%emt 0:00:02]} 59. Qb3+ {[%emt 0:00:03]} Ke5 {[%emt 0:00:08]} 60. Qb8+ {[%emt 0:00:01]} Kd4 {[%emt 0:00:02]} 61. Kf4 {[%emt 0:00:06]} Qc1+ {[%emt 0:00:03]} 62. Kf5 {[%emt 0:00:03]} Qg5+ {[%emt 0:00:04]} 63. Ke6 {[%emt 0:00:01]} Qg6+ {[%emt 0:00:05]} 64. Kd7 {[%emt 0:00:04]} Qf7+ {[%emt 0:00:02]} 65. Kc6 {[%emt 0:00:08]} Qd5+ {[%emt 0:00:02]} 0-1

[Event "European Online Club-ch-I 2021"]
[Site "Online"]
[Date "2021.03.27"]
[Round "7.16"]
[White "Teclaf, Pawel"]
[Black "Boe, Mads"]
[Result "1-0"]
[ECO "A11"]
[WhiteElo "2507"]
[BlackElo "2250"]
[Annotator "ChessBase"]
[PlyCount "37"]
[EventDate "2021.03.27"]
[EventType "team-tourn"]
[EventCountry "NET"]
[SourceTitle "playchess.com"]
[Source "ChessBase"]
[SourceQuality "1"]
[TimeControl "900+5"]

1. Nf3 {[%emt 0:00:00]} d5 {[%emt 0:00:03]} 2. e3 {[%emt 0:00:04]} c6 {[%emt 0:00:01]} 3. c4 {[%emt 0:00:03]} Nf6 {[%emt 0:00:02]} 4. Nc3 {[%emt 0:00:02]} e6 {[%emt 0:00:08]} 5. Qc2 {[%emt 0:00:26]} Bd6 {[%emt 0:00:05]} 6. b3 {[%emt 0:00:09]} O-O {[%emt 0:00:02]} 7. Bb2 {[%emt 0:00:02]} Qe7 {[%emt 0:00:06]} 8. Rg1 {[%emt 0:02:24]} a6 {[%emt 0:00:38]} 9. g4 {[%emt 0:00:17]} b5 {[%emt 0:00:06]} 10. g5 {[%emt 0:00:28]} Nfd7 {[%emt 0:00:03]} 11. h4 {[%emt 0:02:01]} Bb7 {[%emt 0:00:14]} 12. h5 {[%emt 0:00:10]} e5 {[%emt 0:00:02]} 13. Nh4 {[%emt 0:00:12]} Ba3 {[%emt 0:02:02]} 14. Nf5 {[%emt 0:00:10]} Qb4 {[%emt 0:00:04]} 15. g6 {[%emt 0:01:47]} fxg6 {[%emt 0:00:13]} 16. hxg6 {[%emt 0:00:49]} h6 {[%emt 0:02:25]} 17. Nxh6+ {[%emt 0:00:14]} gxh6 {[%emt 0:00:04]} 18. g7 {[%emt 0:00:01]} Rf6 {[%emt 0:00:08]} 19. Qh7+ {[%emt 0:00:04]} 1-0

[Event "European Online Club-ch-I 2021"]
[Site "Online"]
[Date "2021.03.27"]
[Round "7.17"]
[White "Bulockin, Martin"]
[Black "Stephan, Victor"]
[Result "1/2-1/2"]
[ECO "D02"]
[WhiteElo "2315"]
[BlackElo "2430"]
[Annotator "NA"]
[PlyCount "133"]
[EventDate "2021.03.27"]
[EventType "team-tourn"]
[EventCountry "NET"]
[SourceTitle "playchess.com"]
[Source "ChessBase"]
[SourceQuality "1"]
[TimeControl "900+5"]

1. d4 {[%emt 0:00:00]} Nf6 {[%emt 0:00:03]} 2. Nf3 {[%emt 0:00:02]} e6 {[%emt 0:00:03]} 3. Bf4 {[%emt 0:00:09]} d5 {[%emt 0:00:04]} 4. e3 {[%emt 0:00:04]} Bd6 {[%emt 0:00:02]} 5. Bg3 {[%emt 0:00:02]} c5 {[%emt 0:00:03]} 6. c3 {[%emt 0:00:03]} O-O {[%emt 0:00:02]} 7. Nbd2 {[%emt 0:00:02]} Qc7 {[%emt 0:00:02]} 8. Ne5 {[%emt 0:00:13]} Nc6 {[%emt 0:00:01]} 9. f4 {[%emt 0:00:06]} b6 {[%emt 0:00:04]} 10. Bd3 {[%emt 0:00:25]} Ne7 {[%emt 0:00:11]} 11. Bh4 {[%emt 0:00:17]} Ng6 {[%emt 0:00:02]} 12. Bf2 {[%emt 0:00:39]} Bb7 {[%emt 0:00:37]} 13. Qf3 {[%emt 0:00:14]} Rae8 {[%emt 0:01:34]} 14. O-O {[%emt 0:00:11]} cxd4 {[%emt 0:00:10]} 15. exd4 {[%emt 0:00:19]} a6 {[%emt 0:01:02]} 16. Rae1 {[%emt 0:00:27]} b5 {[%emt 0:00:05]} 17. a3 {[%emt 0:00:03]} Qb6 {[%emt 0:00:43]} 18. g4 {[%emt 0:00:18]} Rd8 {[%emt 0:00:57]} 19. g5 {[%emt 0:01:57]} Nd7 {[%emt 0:00:15]} 20. Nxg6 {[%emt 0:00:19]} fxg6 {[%emt 0:01:00]} 21. Rxe6 {[%emt 0:00:52]} Rxf4 {[%emt 0:00:06]} 22. Qe2 {[%emt 0:01:34]} Nf8 {[%emt 0:00:37]} 23. Re8 {[%emt 0:00:22]} Qc7 {[%emt 0:00:43]} 24. Bg3 {[%emt 0:00:51]} Rxf1+ {[%emt 0:00:44]} 25. Nxf1 {[%emt 0:00:00]} Rxe8 {[%emt 0:00:24]} 26. Qxe8 {[%emt 0:00:04]} Bxg3 {[%emt 0:00:42]} 27. hxg3 {[%emt 0:00:46]} Qf7 {[%emt 0:00:27]} 28. Qxf7+ {[%emt 0:00:32]} Kxf7 {[%emt 0:00:03]} 29. Nd2 {[%emt 0:00:00]} Bc8 {[%emt 0:00:53]} 30. Nf3 {[%emt 0:00:07]} Bf5 {[%emt 0:00:02]} 31. Ne5+ {[%emt 0:01:10]} Ke6 {[%emt 0:00:04]} 32. Be2 {[%emt 0:00:28]} Kd6 {[%emt 0:00:02]} 33. a4 {[%emt 0:00:43]} bxa4 {[%emt 0:00:12]} 34. Bxa6 {[%emt 0:00:00]} Ne6 {[%emt 0:00:10]} 35. Bb5 {[%emt 0:00:46]} Bc2 {[%emt 0:00:11]} 36. Nf3 {[%emt 0:00:37]} Bd1 {[%emt 0:01:34]} 37. Kf2 {[%emt 0:00:03]} Bxf3 {[%emt 0:00:02]} 38. Kxf3 {[%emt 0:00:00]} Nxg5+ {[%emt 0:00:01]} 39. Kg2 {[%emt 0:00:12]} a3 {[%emt 0:00:08]} 40. bxa3 {[%emt 0:00:03]} Ne4 {[%emt 0:00:01]} 41. c4 {[%emt 0:00:14]} dxc4 {[%emt 0:00:07]} 42. Bxc4 {[%emt 0:00:00]} g5 {[%emt 0:00:29]} 43. a4 {[%emt 0:00:18]} h6 {[%emt 0:00:31]} 44. a5 {[%emt 0:00:09]} Kc6 {[%emt 0:00:06]} 45. Bd3 {[%emt 0:00:48]} Nd6 {[%emt 0:00:06]} 46. Kf3 {[%emt 0:00:11]} Kd5 {[%emt 0:01:02]} 47. a6 {[%emt 0:00:45]} Nc8 {[%emt 0:00:07]} 48. Ke3 {[%emt 0:00:04]} h5 {[%emt 0:00:27]} 49. Bg6 {[%emt 0:00:42]} h4 {[%emt 0:00:06]} 50. gxh4 {[%emt 0:00:03]} gxh4 {[%emt 0:00:02]} 51. Be4+ {[%emt 0:00:21]} Kc4 {[%emt 0:00:05]} 52. Bb7 {[%emt 0:00:32]} Na7 {[%emt 0:00:04]} 53. Ke4 {[%emt 0:00:02]} h3 {[%emt 0:00:23]} 54. Ke5 {[%emt 0:00:08]} h2 {[%emt 0:00:01]} 55. Bh1 {[%emt 0:00:05]} Kb5 {[%emt 0:00:02]} 56. d5 {[%emt 0:00:04]} Kxa6 {[%emt 0:00:02]} 57. d6 {[%emt 0:00:03]} Kb6 {[%emt 0:00:23]} 58. Ke6 {[%emt 0:00:09]} Nc6 {[%emt 0:00:06]} 59. d7 {[%emt 0:00:07]} Nd8+ {[%emt 0:00:14]} 60. Kd6 {[%emt 0:00:06]} g5 {[%emt 0:00:06]} 61. Bg2 {[%emt 0:00:02]} g4 {[%emt 0:00:08]} 62. Bh1 {[%emt 0:00:03]} g3 {[%emt 0:00:04]} 63. Bg2 {[%emt 0:00:01]} Nb7+ {[%emt 0:00:30]} 64. Ke5 {[%emt 0:00:12]} Kc7 {[%emt 0:00:08]} 65. Kf4 {[%emt 0:00:02]} Kxd7 {[%emt 0:00:03]} 66. Kxg3 {[%emt 0:00:02]} h1=B {[%emt 0:00:04]} 67. Bxh1 {[%emt 0:00:03]} 1/2-1/2

[Event "European Online Club-ch-I 2021"]
[Site "Online"]
[Date "2021.03.27"]
[Round "7.18"]
[White "Bilquez, Romain"]
[Black "Sprenar, Petr"]
[Result "1/2-1/2"]
[ECO "B22"]
[WhiteElo "2276"]
[BlackElo "2259"]
[Annotator "NA"]
[PlyCount "38"]
[EventDate "2021.03.27"]
[EventType "team-tourn"]
[EventCountry "NET"]
[SourceTitle "playchess.com"]
[Source "ChessBase"]
[SourceQuality "1"]
[TimeControl "900+5"]

1. e4 {[%emt 0:00:00]} c5 {[%emt 0:00:02]} 2. c3 {[%emt 0:00:05]} Nf6 {[%emt 0:00:02]} 3. e5 {[%emt 0:00:06]} Nd5 {[%emt 0:00:02]} 4. d4 {[%emt 0:00:01]} cxd4 {[%emt 0:00:03]} 5. Nf3 {[%emt 0:00:00]} Nc6 {[%emt 0:00:01]} 6. cxd4 {[%emt 0:00:02]} d6 {[%emt 0:00:01]} 7. Bc4 {[%emt 0:00:00]} dxe5 {[%emt 0:00:01]} 8. dxe5 {[%emt 0:00:02]} Ndb4 {[%emt 0:00:01]} 9. Qb3 {[%emt 0:01:41]} e6 {[%emt 0:00:04]} 10. O-O {[%emt 0:00:22]} Na5 {[%emt 0:00:05]} 11. Bb5+ {[%emt 0:00:13]} Bd7 {[%emt 0:00:21]} 12. Qa4 {[%emt 0:00:23]} Bxb5 {[%emt 0:00:05]} 13. Qxb5+ {[%emt 0:00:02]} Nac6 {[%emt 0:00:01]} 14. Nc3 {[%emt 0:00:29]} a6 {[%emt 0:00:08]} 15. Qc4 {[%emt 0:00:40]} Qd3 {[%emt 0:00:03]} 16. Qb3 {[%emt 0:01:16]} Qc2 {[%emt 0:00:47]} 17. Qc4 {[%emt 0:00:44]} Qd3 {[%emt 0:01:23]} 18. Qb3 {[%emt 0:00:04]} Qc2 {[%emt 0:00:24]} 19. Qc4 {[%emt 0:00:05]} Qd3 {[%emt 0:02:54]} 1/2-1/2

[Event "European Online Club-ch-I 2021"]
[Site "Online"]
[Date "2021.03.27"]
[Round "7.19"]
[White "Eret, Matous"]
[Black "Martsynovskaya, Marina"]
[Result "1-0"]
[ECO "C25"]
[WhiteElo "2255"]
[BlackElo "2046"]
[Annotator "NA"]
[PlyCount "63"]
[EventDate "2021.03.27"]
[EventType "team-tourn"]
[EventCountry "NET"]
[SourceTitle "playchess.com"]
[Source "ChessBase"]
[SourceQuality "1"]
[TimeControl "900+5"]

1. e4 {[%emt 0:00:00]} e5 {[%emt 0:00:03]} 2. Nc3 {[%emt 0:00:03]} Nc6 {[%emt 0:00:04]} 3. f4 {[%emt 0:00:02]} exf4 {[%emt 0:00:02]} 4. d4 {[%emt 0:00:51]} Qh4+ {[%emt 0:01:31]} 5. Ke2 {[%emt 0:00:03]} g5 {[%emt 0:00:12]} 6. Nf3 {[%emt 0:00:27]} Qh5 {[%emt 0:00:03]} 7. Nd5 {[%emt 0:00:26]} Kd8 {[%emt 0:01:00]} 8. h4 {[%emt 0:00:56]} Bg7 {[%emt 0:00:08]} 9. c3 {[%emt 0:00:11]} d6 {[%emt 0:01:12]} 10. Kf2 {[%emt 0:01:29]} h6 {[%emt 0:01:02]} 11. Be2 {[%emt 0:00:26]} Qg6 {[%emt 0:00:35]} 12. Bd3 {[%emt 0:00:45]} Nf6 {[%emt 0:02:32]} 13. Qc2 {[%emt 0:00:51]} Nh5 {[%emt 0:01:41]} 14. e5 {[%emt 0:02:35]} Qe6 {[%emt 0:00:06]} 15. hxg5 {[%emt 0:00:02]} hxg5 {[%emt 0:00:55]} 16. Nxg5 {[%emt 0:00:21]} Qxd5 {[%emt 0:01:15]} 17. Be4 {[%emt 0:00:05]} Qc4 {[%emt 0:03:13]} 18. b3 {[%emt 0:01:03]} Nxd4 {[%emt 0:00:02]} 19. bxc4 {[%emt 0:01:03]} Nxc2 {[%emt 0:00:03]} 20. Nxf7+ {[%emt 0:00:01]} Ke7 {[%emt 0:00:03]} 21. Nxh8 {[%emt 0:00:03]} Nxa1 {[%emt 0:00:17]} 22. Ng6+ {[%emt 0:00:43]} Kf7 {[%emt 0:00:09]} 23. Rxh5 {[%emt 0:00:09]} Be6 {[%emt 0:00:12]} 24. Bb2 {[%emt 0:00:20]} Bxc4 {[%emt 0:00:06]} 25. Bxa1 {[%emt 0:00:04]} Bxa2 {[%emt 0:00:02]} 26. c4 {[%emt 0:01:03]} Bxc4 {[%emt 0:00:11]} 27. e6+ {[%emt 0:00:02]} Bxe6 {[%emt 0:00:03]} 28. Rh7 {[%emt 0:00:04]} Rg8 {[%emt 0:00:02]} 29. Nxf4 {[%emt 0:00:04]} Ba2 {[%emt 0:00:11]} 30. Nh5 {[%emt 0:00:05]} d5 {[%emt 0:00:10]} 31. Bf5 {[%emt 0:00:15]} c5 {[%emt 0:00:08]} 32. Bxg7 {[%emt 0:00:02]} 1-0

[Event "European Online Club-ch-I 2021"]
[Site "Online"]
[Date "2021.03.27"]
[Round "7.20"]
[White "Devallee, Jeremie"]
[Black "Stinka, Jakub"]
[Result "1-0"]
[ECO "B21"]
[WhiteElo "2220"]
[BlackElo "2232"]
[Annotator "NA"]
[PlyCount "39"]
[EventDate "2021.03.27"]
[EventType "team-tourn"]
[EventCountry "NET"]
[SourceTitle "playchess.com"]
[Source "ChessBase"]
[SourceQuality "1"]
[TimeControl "900+5"]

1. e4 {[%emt 0:00:00]} c5 {[%emt 0:00:04]} 2. d4 {[%emt 0:00:04]} cxd4 {[%emt 0:00:01]} 3. c3 {[%emt 0:00:01]} dxc3 {[%emt 0:00:30]} 4. Nxc3 {[%emt 0:00:02]} Nc6 {[%emt 0:00:02]} 5. Nf3 {[%emt 0:00:03]} e6 {[%emt 0:00:11]} 6. Bc4 {[%emt 0:00:02]} a6 {[%emt 0:00:08]} 7. O-O {[%emt 0:00:04]} Nge7 {[%emt 0:00:16]} 8. Bg5 {[%emt 0:00:07]} f6 {[%emt 0:00:27]} 9. Be3 {[%emt 0:00:02]} b5 {[%emt 0:00:14]} 10. Bb3 {[%emt 0:00:02]} Ng6 {[%emt 0:00:02]} 11. Nd5 {[%emt 0:00:01]} exd5 {[%emt 0:00:21]} 12. exd5 {[%emt 0:00:02]} Nce5 {[%emt 0:00:09]} 13. Nxe5 {[%emt 0:00:02]} fxe5 {[%emt 0:00:14]} 14. d6 {[%emt 0:00:01]} Bb7 {[%emt 0:01:15]} 15. f4 {[%emt 0:00:04]} e4 {[%emt 0:02:23]} 16. f5 {[%emt 0:00:24]} Qf6 {[%emt 0:02:08]} 17. fxg6 {[%emt 0:00:05]} Qxd6 {[%emt 0:00:04]} 18. Rxf8+ {[%emt 0:01:27]} Qxf8 {[%emt 0:00:13]} 19. Bf7+ {[%emt 0:00:02]} Kd8 {[%emt 0:00:21]} 20. Rc1 {[%emt 0:00:21]} 1-0

[Event "European Online Club-ch-I 2021"]
[Site "Online"]
[Date "2021.03.27"]
[Round "8.1"]
[White "Ribbegren, Karl Johan"]
[Black "Stephan, Victor"]
[Result "0-1"]
[ECO "A46"]
[WhiteElo "2185"]
[BlackElo "2430"]
[Annotator "NA"]
[PlyCount "134"]
[EventDate "2021.03.27"]
[EventType "team-tourn"]
[EventCountry "NET"]
[SourceTitle "playchess.com"]
[Source "ChessBase"]
[SourceQuality "1"]
[TimeControl "900+5"]

1. d4 {[%emt 0:00:00]} Nf6 {[%emt 0:00:04]} 2. Nf3 {[%emt 0:00:02]} e6 {[%emt 0:00:02]} 3. Bg5 {[%emt 0:00:02]} c5 {[%emt 0:00:07]} 4. e3 {[%emt 0:00:03]} cxd4 {[%emt 0:00:05]} 5. exd4 {[%emt 0:00:02]} b6 {[%emt 0:00:10]} 6. d5 {[%emt 0:00:14]} exd5 {[%emt 0:00:57]} 7. Nc3 {[%emt 0:00:17]} Bb4 {[%emt 0:00:04]} 8. Be2 {[%emt 0:00:42]} h6 {[%emt 0:00:44]} 9. Bh4 {[%emt 0:00:06]} Bb7 {[%emt 0:00:19]} 10. O-O {[%emt 0:00:03]} g5 {[%emt 0:00:05]} 11. Bg3 {[%emt 0:00:02]} Bxc3 {[%emt 0:00:02]} 12. bxc3 {[%emt 0:00:03]} Ne4 {[%emt 0:00:03]} 13. Nd4 {[%emt 0:00:43]} O-O {[%emt 0:00:39]} 14. Bd3 {[%emt 0:00:11]} Nc6 {[%emt 0:00:15]} 15. Nf5 {[%emt 0:00:05]} Qf6 {[%emt 0:00:03]} 16. Bxe4 {[%emt 0:01:51]} dxe4 {[%emt 0:00:05]} 17. Qxd7 {[%emt 0:00:01]} Na5 {[%emt 0:00:47]} 18. Ne7+ {[%emt 0:02:03]} Kg7 {[%emt 0:00:54]} 19. Qc7 {[%emt 0:00:21]} Kh7 {[%emt 0:00:35]} 20. Rad1 {[%emt 0:00:27]} Qe6 {[%emt 0:02:44]} 21. Rd6 {[%emt 0:01:19]} Qc4 {[%emt 0:00:04]} 22. Nf5 {[%emt 0:00:03]} Qxc7 {[%emt 0:00:36]} 23. Rxh6+ {[%emt 0:00:01]} Kg8 {[%emt 0:00:01]} 24. Bxc7 {[%emt 0:00:04]} Nc4 {[%emt 0:00:46]} 25. Rd1 {[%emt 0:00:32]} Bc8 {[%emt 0:00:18]} 26. Ne3 {[%emt 0:00:36]} Kg7 {[%emt 0:00:38]} 27. Rc6 {[%emt 0:00:09]} Nxe3 {[%emt 0:00:33]} 28. fxe3 {[%emt 0:00:05]} Be6 {[%emt 0:00:01]} 29. Be5+ {[%emt 0:00:06]} Kg6 {[%emt 0:00:17]} 30. Rf1 {[%emt 0:00:22]} Rac8 {[%emt 0:00:07]} 31. Rf6+ {[%emt 0:00:04]} Kh7 {[%emt 0:00:24]} 32. Rd6 {[%emt 0:02:52]} Rfd8 {[%emt 0:00:29]} 33. Rxd8 {[%emt 0:00:55]} Rxd8 {[%emt 0:00:03]} 34. a3 {[%emt 0:00:26]} Rd5 {[%emt 0:00:13]} 35. Bd4 {[%emt 0:00:09]} Ra5 {[%emt 0:00:04]} 36. Kf2 {[%emt 0:00:11]} Rxa3 {[%emt 0:00:08]} 37. Kg3 {[%emt 0:00:02]} Ra2 {[%emt 0:00:11]} 38. h4 {[%emt 0:00:03]} gxh4+ {[%emt 0:01:04]} 39. Kxh4 {[%emt 0:00:04]} Rxc2 {[%emt 0:00:01]} 40. g4 {[%emt 0:00:14]} Rg2 {[%emt 0:00:51]} 41. g5 {[%emt 0:00:07]} Kg8 {[%emt 0:00:15]} 42. Rh6 {[%emt 0:00:12]} Kf8 {[%emt 0:00:33]} 43. Rh8+ {[%emt 0:00:21]} Ke7 {[%emt 0:00:02]} 44. Ra8 {[%emt 0:00:07]} Ra2 {[%emt 0:00:02]} 45. Kg3 {[%emt 0:00:11]} Kd7 {[%emt 0:00:32]} 46. Kf4 {[%emt 0:00:12]} Ra5 {[%emt 0:00:01]} 47. Rh8 {[%emt 0:01:13]} Kc6 {[%emt 0:00:05]} 48. Re8 {[%emt 0:00:27]} Rf5+ {[%emt 0:00:11]} 49. Kxe4 {[%emt 0:00:07]} Rxg5 {[%emt 0:00:02]} 50. Kd3 {[%emt 0:00:06]} a5 {[%emt 0:00:16]} 51. c4 {[%emt 0:00:07]} Kb7 {[%emt 0:00:40]} 52. Re7+ {[%emt 0:00:05]} Ka6 {[%emt 0:00:02]} 53. Re8 {[%emt 0:00:03]} Kb7 {[%emt 0:00:26]} 54. Re7+ {[%emt 0:00:03]} Kc6 {[%emt 0:00:01]} 55. Re8 {[%emt 0:00:02]} Rg1 {[%emt 0:00:09]} 56. Rb8 {[%emt 0:00:08]} Kc7 {[%emt 0:00:05]} 57. Rxb6 {[%emt 0:00:24]} Rd1+ {[%emt 0:00:02]} 58. Kc3 {[%emt 0:00:02]} Rxd4 {[%emt 0:00:01]} 59. Rxe6 {[%emt 0:00:02]} Rxc4+ {[%emt 0:00:02]} 60. Kxc4 {[%emt 0:00:03]} fxe6 {[%emt 0:00:01]} 61. Kb5 {[%emt 0:00:02]} Kd6 {[%emt 0:00:02]} 62. Kxa5 {[%emt 0:00:01]} Kc5 {[%emt 0:00:13]} 63. Ka4 {[%emt 0:00:02]} Kc4 {[%emt 0:00:04]} 64. Ka3 {[%emt 0:00:01]} Kd3 {[%emt 0:00:07]} 65. Kb2 {[%emt 0:00:02]} Kxe3 {[%emt 0:00:02]} 66. Kc2 {[%emt 0:00:06]} e5 {[%emt 0:00:03]} 67. Kd1 {[%emt 0:00:03]} Kf2 {[%emt 0:00:01]} 0-1

[Event "European Online Club-ch-I 2021"]
[Site "Online"]
[Date "2021.03.27"]
[Round "8.2"]
[White "Bilquez, Romain"]
[Black "Verdier, Patrice"]
[Result "1/2-1/2"]
[ECO "B00"]
[WhiteElo "2276"]
[BlackElo "2109"]
[Annotator "NA"]
[PlyCount "63"]
[EventDate "2021.03.27"]
[EventType "team-tourn"]
[EventCountry "NET"]
[SourceTitle "playchess.com"]
[Source "ChessBase"]
[SourceQuality "1"]
[TimeControl "900+5"]

1. e4 {[%emt 0:00:00]} b6 {[%emt 0:00:16]} 2. Nc3 {[%emt 0:00:03]} Bb7 {[%emt 0:00:04]} 3. d4 {[%emt 0:00:02]} Nf6 {[%emt 0:00:19]} 4. Bd3 {[%emt 0:02:08]} e6 {[%emt 0:00:05]} 5. a3 {[%emt 0:00:01]} c5 {[%emt 0:00:04]} 6. Nf3 {[%emt 0:00:02]} Be7 {[%emt 0:00:31]} 7. O-O {[%emt 0:00:07]} O-O {[%emt 0:00:12]} 8. e5 {[%emt 0:01:06]} Nd5 {[%emt 0:00:17]} 9. Nxd5 {[%emt 0:00:40]} Bxd5 {[%emt 0:00:10]} 10. c4 {[%emt 0:00:04]} Bb7 {[%emt 0:00:07]} 11. d5 {[%emt 0:00:31]} d6 {[%emt 0:01:29]} 12. exd6 {[%emt 0:01:09]} Qxd6 {[%emt 0:00:11]} 13. dxe6 {[%emt 0:00:55]} fxe6 {[%emt 0:00:11]} 14. Ng5 {[%emt 0:00:12]} h6 {[%emt 0:03:57]} 15. Bh7+ {[%emt 0:03:43]} Kh8 {[%emt 0:00:04]} 16. Qxd6 {[%emt 0:00:02]} Bxd6 {[%emt 0:00:05]} 17. Be4 {[%emt 0:00:14]} Bxe4 {[%emt 0:00:34]} 18. Nxe4 {[%emt 0:00:00]} Be5 {[%emt 0:00:02]} 19. Rb1 {[%emt 0:00:01]} Nc6 {[%emt 0:00:24]} 20. Re1 {[%emt 0:00:05]} Bd4 {[%emt 0:00:17]} 21. Be3 {[%emt 0:00:03]} e5 {[%emt 0:00:03]} 22. b4 {[%emt 0:00:17]} cxb4 {[%emt 0:00:16]} 23. axb4 {[%emt 0:00:00]} a5 {[%emt 0:00:40]} 24. b5 {[%emt 0:00:27]} Nb4 {[%emt 0:00:04]} 25. Bxd4 {[%emt 0:00:54]} exd4 {[%emt 0:00:04]} 26. Red1 {[%emt 0:00:09]} Rfd8 {[%emt 0:00:15]} 27. c5 {[%emt 0:00:25]} bxc5 {[%emt 0:00:20]} 28. Nxc5 {[%emt 0:00:02]} Rd6 {[%emt 0:00:05]} 29. Nb3 {[%emt 0:00:16]} Nc2 {[%emt 0:01:12]} 30. Rbc1 {[%emt 0:00:16]} a4 {[%emt 0:00:06]} 31. Nc5 {[%emt 0:00:34]} Na3 {[%emt 0:00:34]} 32. Ra1 {[%emt 0:01:58]} 1/2-1/2